[Event "ESP-chT 2nd Division 2019"]
[Site "Linares"]
[Date "2019.08.22"]
[Round "5.4"]
[White "Trigo Urquijo, Sergio"]
[Black "Abal Cores, Lucas"]
[Result "0-1"]
[ECO "A80"]
[WhiteElo "2385"]
[BlackElo "2290"]
[Annotator "NA"]
[PlyCount "80"]
[EventDate "2019.08.19"]
[EventType "team-tourn"]
[EventCountry "ESP"]
[SourceTitle "playchess.com"]
[Source "ChessBase"]
[SourceQuality "1"]
[TimeControl "5400+30"]

1. d4 {[%emt 0:00:00]} f5 {[%emt 0:00:00]} 2. Nc3 {[%emt 0:00:06]} Nf6 {[%emt 0:00:16]} 3. Bg5 {[%emt 0:00:26]} d5 {[%emt 0:00:05]} 4. Bxf6 {[%emt 0:00:36]} exf6 {[%emt 0:00:06]} 5. e3 {[%emt 0:00:25]} Be6 {[%emt 0:00:09]} 6. Qf3 {[%emt 0:01:15]} Qd7 {[%emt 0:05:45]} 7. Bd3 {[%emt 0:02:37]} Nc6 {[%emt 0:03:57]} 8. a3 {[%emt 0:01:55]} O-O-O {[%emt 0:04:58]} 9. Nge2 {[%emt 0:01:02]} g6 {[%emt 0:00:41]} 10. Nf4 {[%emt 0:01:27]} Bf7 {[%emt 0:00:18]} 11. h3 {[%emt 0:02:26]} h5 {[%emt 0:02:20]} 12. h4 {[%emt 0:09:26]} Ne7 {[%emt 0:07:09]} 13. Bb5 {[%emt 0:14:23]} Qd6 {[%emt 0:10:53]} 14. Nd3 {[%emt 0:03:05]} Bg7 {[%emt 0:04:18]} 15. Ba4 {[%emt 0:05:03]} a6 {[%emt 0:04:08]} 16. b4 {[%emt 0:04:14]} g5 {[%emt 0:03:15]} 17. g3 {[%emt 0:04:49]} Bg6 {[%emt 0:14:42]} 18. Kd2 {[%emt 0:12:29]} Kb8 {[%emt 0:06:20]} 19. Bb3 {[%emt 0:01:51]} Rhe8 {[%emt 0:06:18]} 20. Qg2 {[%emt 0:03:24]} f4 {[%emt 0:04:24]} 21. gxf4 {[%emt 0:01:28]} Bxd3 {[%emt 0:02:44]} 22. cxd3 {[%emt 0:01:01]} g4 {[%emt 0:00:12]} 23. Ne2 {[%emt 0:08:33]} f5 {[%emt 0:01:01]} 24. Ba4 {[%emt 0:02:59]} b5 {[%emt 0:02:07]} 25. Bb3 {[%emt 0:00:42]} Bf6 {[%emt 0:00:13]} 26. Ng3 {[%emt 0:02:09]} Bxd4 {[%emt 0:00:06]} 27. exd4 {[%emt 0:02:39]} Qxf4+ {[%emt 0:00:01]} 28. Kc2 {[%emt 0:02:03]} Nc6 {[%emt 0:00:11]} 29. Rad1 {[%emt 0:01:42]} Nxd4+ {[%emt 0:02:45]} 30. Kb2 {[%emt 0:00:25]} Ne2 {[%emt 0:03:39]} 31. Rhe1 {[%emt 0:04:09]} Qd4+ {[%emt 0:00:22]} 32. Kb1 {[%emt 0:00:28]} Nc3+ {[%emt 0:00:33]} 33. Kc2 {[%emt 0:00:06]} Nxd1 {[%emt 0:00:10]} 34. Rxd1 {[%emt 0:00:23]} f4 {[%emt 0:01:22]} 35. Nf1 {[%emt 0:02:46]} Re2+ {[%emt 0:00:24]} 36. Rd2 {[%emt 0:00:24]} f3 {[%emt 0:00:27]} 37. Qh1 {[%emt 0:02:10]} Rd6 {[%emt 0:02:36]} 38. Rxe2 {[%emt 0:00:29]} Rc6+ {[%emt 0:00:39]} 39. Kb1 {[%emt 0:01:29]} fxe2 {[%emt 0:00:18]} 40. Ne3 {[%emt 0:00:34]} Qxd3+ {[%emt 0:00:10]} 0-1

[Event "ESP-chT 2nd Division 2019"]
[Site "Linares"]
[Date "2019.08.22"]
[Round "5.5"]
[White "Dorado Meijide, Andrea"]
[Black "Sosa Suarez, Carla Cristina"]
[Result "0-1"]
[ECO "C03"]
[WhiteElo "1762"]
[BlackElo "2135"]
[Annotator "NA"]
[PlyCount "66"]
[EventDate "2019.08.19"]
[EventType "team-tourn"]
[EventCountry "ESP"]
[SourceTitle "playchess.com"]
[Source "ChessBase"]
[SourceQuality "1"]
[TimeControl "5400+30"]

1. e4 {[%emt 0:00:12]} e6 {[%emt 0:00:00]} 2. d4 {[%emt 0:00:07]} d5 {[%emt 0:00:00]} 3. Nd2 {[%emt 0:00:17]} Be7 {[%emt 0:00:00]} 4. Ngf3 {[%emt 0:00:34]} Nf6 {[%emt 0:00:00]} 5. e5 {[%emt 0:00:14]} Nfd7 {[%emt 0:00:00]} 6. Bd3 {[%emt 0:00:20]} c5 {[%emt 0:00:04]} 7. c3 {[%emt 0:00:19]} Nc6 {[%emt 0:00:04]} 8. O-O {[%emt 0:00:55]} g5 {[%emt 0:00:03]} 9. dxc5 {[%emt 0:02:42]} g4 {[%emt 0:00:26]} 10. Nd4 {[%emt 0:00:06]} Ndxe5 {[%emt 0:00:23]} 11. Bb5 {[%emt 0:01:26]} Bd7 {[%emt 0:00:04]} 12. Qe2 {[%emt 0:02:05]} Qc7 {[%emt 0:07:16]} 13. b4 {[%emt 0:08:24]} Ng6 {[%emt 0:05:50]} 14. N2b3 {[%emt 0:07:57]} e5 {[%emt 0:02:39]} 15. Nc2 {[%emt 0:00:55]} f5 {[%emt 0:03:38]} 16. Rd1 {[%emt 0:16:19]} a6 {[%emt 0:04:06]} 17. Ba4 {[%emt 0:01:46]} O-O {[%emt 0:02:51]} 18. Bh6 {[%emt 0:01:36]} f4 {[%emt 0:08:28]} 19. Rxd5 {[%emt 0:03:43]} Be6 {[%emt 0:04:30]} 20. Bxc6 {[%emt 0:01:44]} Qxc6 {[%emt 0:02:03]} 21. Rxe5 {[%emt 0:08:31]} Nxe5 {[%emt 0:05:45]} 22. Qxe5 {[%emt 0:02:56]} Bf6 {[%emt 0:02:41]} 23. Qxf4 {[%emt 0:00:07]} Rf7 {[%emt 0:01:13]} 24. Rd1 {[%emt 0:05:58]} Bh4 {[%emt 0:06:44]} 25. Qe5 {[%emt 0:01:04]} Bxb3 {[%emt 0:02:53]} 26. Qh5 {[%emt 0:11:44]} Bxc2 {[%emt 0:04:53]} 27. Rd6 {[%emt 0:00:06]} Qe4 {[%emt 0:02:47]} 28. Be3 {[%emt 0:03:09]} Ba4 {[%emt 0:01:40]} 29. h3 {[%emt 0:00:44]} gxh3 {[%emt 0:01:30]} 30. gxh3 {[%emt 0:01:10]} Rg7+ {[%emt 0:00:33]} 31. Kf1 {[%emt 0:00:02]} Qb1+ {[%emt 0:02:51]} 32. Ke2 {[%emt 0:00:29]} Qc2+ {[%emt 0:01:04]} 33. Bd2 {[%emt 0:00:54]} Qd1+ {[%emt 0:00:26]} 0-1

[Event "ESP-chT 2nd Division 2019"]
[Site "Linares"]
[Date "2019.08.22"]
[Round "5.6"]
[White "Gamundi Salamanca, Antonio"]
[Black "Rios, Cristhian Camilo"]
[Result "0-1"]
[ECO "A45"]
[WhiteElo "2444"]
[BlackElo "2530"]
[Annotator "ChessBase"]
[PlyCount "80"]
[EventDate "2019.08.19"]
[EventType "team-tourn"]
[EventCountry "ESP"]
[SourceTitle "playchess.com"]
[Source "ChessBase"]
[SourceQuality "1"]
[TimeControl "5400+30"]

1. d4 {[%emt 0:00:00]} Nf6 {[%emt 0:01:35]} 2. Bg5 {[%emt 0:00:00]} e6 {[%emt 0:03:38]} 3. Nd2 {[%emt 0:00:42]} h6 {[%emt 0:01:57]} 4. Bh4 {[%emt 0:00:15]} d6 {[%emt 0:00:04]} 5. e3 {[%emt 0:02:37]} Nbd7 {[%emt 0:00:07]} 6. Ngf3 {[%emt 0:05:16]} g5 {[%emt 0:01:56]} 7. Bg3 {[%emt 0:00:07]} Nh5 {[%emt 0:00:07]} 8. Bd3 {[%emt 0:00:46]} Bg7 {[%emt 0:00:15]} 9. c3 {[%emt 0:03:22]} Qe7 {[%emt 0:00:52]} 10. Qc2 {[%emt 0:04:37]} b6 {[%emt 0:04:28]} 11. Be4 {[%emt 0:00:53]} d5 {[%emt 0:00:22]} 12. Bd3 {[%emt 0:00:12]} Nxg3 {[%emt 0:00:06]} 13. hxg3 {[%emt 0:00:06]} Bb7 {[%emt 0:00:08]} 14. O-O-O {[%emt 0:02:22]} c5 {[%emt 0:03:17]} 15. Kb1 {[%emt 0:04:46]} c4 {[%emt 0:05:30]} 16. Be2 {[%emt 0:00:55]} b5 {[%emt 0:00:59]} 17. e4 {[%emt 0:00:42]} dxe4 {[%emt 0:06:09]} 18. Nxe4 {[%emt 0:01:10]} f5 {[%emt 0:00:06]} 19. Ned2 {[%emt 0:00:57]} O-O {[%emt 0:01:43]} 20. Rde1 {[%emt 0:13:57]} Rac8 {[%emt 0:03:50]} 21. Ka1 {[%emt 0:01:32]} Bd5 {[%emt 0:00:45]} 22. Bf1 {[%emt 0:14:00]} b4 {[%emt 0:04:57]} 23. Nb1 {[%emt 0:13:33]} b3 {[%emt 0:07:28]} 24. Qc1 {[%emt 0:01:40]} bxa2 {[%emt 0:00:10]} 25. Na3 {[%emt 0:00:32]} Rc6 {[%emt 0:02:23]} 26. Nd2 {[%emt 0:02:28]} Nb6 {[%emt 0:02:37]} 27. Nc2 {[%emt 0:07:11]} a5 {[%emt 0:00:37]} 28. Ne3 {[%emt 0:00:50]} Qb7 {[%emt 0:02:47]} 29. Nxd5 {[%emt 0:04:12]} exd5 {[%emt 0:00:09]} 30. Be2 {[%emt 0:00:33]} a4 {[%emt 0:01:07]} 31. Bh5 {[%emt 0:03:42]} Qa7 {[%emt 0:03:14]} 32. Re3 {[%emt 0:02:47]} a3 {[%emt 0:01:09]} 33. Rhe1 {[%emt 0:01:00]} axb2+ {[%emt 0:00:07]} 34. Qxb2 {[%emt 0:00:01]} Na4 {[%emt 0:00:11]} 35. Qa3 {[%emt 0:04:52]} Bxd4 {[%emt 0:11:52]} 36. Qxf8+ {[%emt 0:00:26]} Kxf8 {[%emt 0:00:06]} 37. Re8+ {[%emt 0:00:05]} Kg7 {[%emt 0:00:05]} 38. R8e7+ {[%emt 0:01:49]} Kf6 {[%emt 0:00:12]} 39. Rxa7 {[%emt 0:00:05]} Bxa7 {[%emt 0:00:04]} 40. Be8 {[%emt 0:00:35]} Ra6 0-1

[Event "ESP-chT 2nd Division 2019"]
[Site "Linares"]
[Date "2019.08.22"]
[Round "5.7"]
[White "Sosa, Tomas"]
[Black "Perez Garcia, Alejandro"]
[Result "1-0"]
[ECO "A01"]
[WhiteElo "2508"]
[BlackElo "2347"]
[Annotator "ChessBase"]
[PlyCount "81"]
[EventDate "2019.08.19"]
[EventType "team-tourn"]
[EventCountry "ESP"]
[SourceTitle "playchess.com"]
[Source "ChessBase"]
[SourceQuality "1"]
[TimeControl "5400+30"]

1. b3 {[%emt 0:01:15]} d5 {[%emt 0:03:39]} 2. Bb2 {[%emt 0:00:06]} Nf6 {[%emt 0:00:43]} 3. g3 {[%emt 0:00:06]} Bf5 {[%emt 0:04:58]} 4. Bg2 {[%emt 0:00:12]} e6 {[%emt 0:04:56]} 5. d3 {[%emt 0:00:14]} h6 {[%emt 0:04:37]} 6. Nd2 {[%emt 0:01:12]} Bh7 {[%emt 0:02:59]} 7. e4 {[%emt 0:01:01]} Bb4 {[%emt 0:04:39]} 8. c3 {[%emt 0:06:14]} Be7 {[%emt 0:01:48]} 9. Qe2 {[%emt 0:01:09]} O-O {[%emt 0:00:41]} 10. Nh3 {[%emt 0:01:39]} Nbd7 {[%emt 0:12:58]} 11. f4 {[%emt 0:06:18]} a5 {[%emt 0:13:20]} 12. a3 {[%emt 0:12:07]} c6 {[%emt 0:05:05]} 13. Nf2 {[%emt 0:04:08]} Qb6 {[%emt 0:05:39]} 14. O-O {[%emt 0:13:50]} Nc5 {[%emt 0:05:13]} 15. c4 {[%emt 0:17:40]} dxe4 {[%emt 0:10:42]} 16. dxe4 {[%emt 0:00:15]} Rfd8 {[%emt 0:05:36]} 17. Bxf6 {[%emt 0:18:46]} Bxf6 {[%emt 0:00:24]} 18. e5 {[%emt 0:00:08]} Be7 {[%emt 0:00:55]} 19. Qe3 {[%emt 0:00:29]} Na4 {[%emt 0:03:51]} 20. Qxb6 {[%emt 0:00:37]} Nxb6 {[%emt 0:00:03]} 21. Nde4 {[%emt 0:00:34]} a4 {[%emt 0:03:20]} 22. c5 {[%emt 0:00:17]} Nd5 {[%emt 0:00:56]} 23. b4 {[%emt 0:00:50]} Ne3 {[%emt 0:00:22]} 24. Rfc1 {[%emt 0:07:11]} Nxg2 {[%emt 0:02:13]} 25. Kxg2 {[%emt 0:00:06]} Bxe4+ {[%emt 0:01:38]} 26. Nxe4 {[%emt 0:00:07]} Rd3 {[%emt 0:00:33]} 27. Rd1 {[%emt 0:01:16]} Rad8 {[%emt 0:01:06]} 28. Nf2 {[%emt 0:02:41]} Rb3 {[%emt 0:00:34]} 29. Rxd8+ {[%emt 0:00:14]} Bxd8 {[%emt 0:00:05]} 30. Rd1 {[%emt 0:00:05]} Be7 {[%emt 0:00:37]} 31. Rd7 {[%emt 0:01:34]} Kf8 {[%emt 0:00:48]} 32. Ne4 {[%emt 0:00:54]} Rxa3 {[%emt 0:00:13]} 33. Rxb7 {[%emt 0:00:07]} Ke8 {[%emt 0:00:41]} 34. Ra7 {[%emt 0:01:37]} Re3 {[%emt 0:00:37]} 35. Nd6+ {[%emt 0:00:15]} Bxd6 {[%emt 0:00:15]} 36. exd6 {[%emt 0:00:04]} a3 {[%emt 0:00:25]} 37. b5 {[%emt 0:00:05]} cxb5 {[%emt 0:00:47]} 38. c6 {[%emt 0:00:04]} f6 {[%emt 0:00:27]} 39. Ra8+ {[%emt 0:00:17]} Kf7 {[%emt 0:00:04]} 40. c7 {[%emt 0:00:29]} Rc3 {[%emt 0:00:09]} 41. d7 {[%emt 0:00:06]} 1-0

[Event "ESP-chT 2nd Division 2019"]
[Site "Linares"]
[Date "2019.08.22"]
[Round "5.8"]
[White "Gavilan Diaz, Mario"]
[Black "Garriga Cazorla, Pere"]
[Result "0-1"]
[ECO "B30"]
[WhiteElo "2318"]
[BlackElo "2495"]
[Annotator "ChessBase"]
[PlyCount "102"]
[EventDate "2019.08.19"]
[EventType "team-tourn"]
[EventCountry "ESP"]
[SourceTitle "playchess.com"]
[Source "ChessBase"]
[SourceQuality "1"]
[TimeControl "5400+30"]

1. e4 {[%emt 0:00:00]} c5 {[%emt 0:00:36]} 2. Nf3 {[%emt 0:00:08]} Nc6 {[%emt 0:00:05]} 3. Nc3 {[%emt 0:01:24]} Nf6 {[%emt 0:00:18]} 4. d4 {[%emt 0:01:03]} cxd4 {[%emt 0:00:05]} 5. Nxd4 {[%emt 0:00:06]} Qb6 {[%emt 0:00:06]} 6. Nb3 {[%emt 0:04:37]} e6 {[%emt 0:00:07]} 7. Bd3 {[%emt 0:24:37]} a6 {[%emt 0:00:29]} 8. O-O {[%emt 0:00:31]} Qc7 {[%emt 0:00:56]} 9. f4 {[%emt 0:01:22]} d6 {[%emt 0:00:05]} 10. Qe1 {[%emt 0:01:07]} b5 {[%emt 0:04:35]} 11. a3 {[%emt 0:01:08]} Be7 {[%emt 0:03:59]} 12. Qg3 {[%emt 0:01:09]} h5 {[%emt 0:00:45]} 13. Kh1 {[%emt 0:17:34]} h4 {[%emt 0:03:30]} 14. Qh3 {[%emt 0:01:30]} b4 {[%emt 0:01:46]} 15. axb4 {[%emt 0:02:18]} Nxb4 {[%emt 0:03:42]} 16. e5 {[%emt 0:00:15]} Nxd3 {[%emt 0:07:47]} 17. cxd3 {[%emt 0:16:19]} Nd5 {[%emt 0:11:51]} 18. Na5 {[%emt 0:03:57]} O-O {[%emt 0:03:22]} 19. Ne4 {[%emt 0:05:22]} dxe5 {[%emt 0:03:04]} 20. fxe5 {[%emt 0:00:06]} Qxe5 {[%emt 0:05:17]} 21. Nc6 {[%emt 0:01:38]} Qh5 {[%emt 0:02:01]} 22. g4 {[%emt 0:06:42]} Qh7 {[%emt 0:03:18]} 23. Nxe7+ {[%emt 0:05:44]} Nxe7 {[%emt 0:00:11]} 24. Ng5 {[%emt 0:02:48]} Qg6 {[%emt 0:01:11]} 25. Bd2 {[%emt 0:00:18]} f6 {[%emt 0:01:49]} 26. Ne4 {[%emt 0:00:32]} Bb7 {[%emt 0:00:06]} 27. Kg1 {[%emt 0:00:25]} Nf5 {[%emt 0:02:48]} 28. Qg2 {[%emt 0:00:28]} Nd4 {[%emt 0:01:53]} 29. Nxf6+ {[%emt 0:00:28]} Rxf6 {[%emt 0:01:13]} 30. Rxf6 {[%emt 0:00:21]} Qxf6 {[%emt 0:01:15]} 31. Qxb7 {[%emt 0:00:06]} Rf8 {[%emt 0:00:07]} 32. Bc3 {[%emt 0:00:36]} h3 {[%emt 0:01:27]} 33. Bxd4 {[%emt 0:01:11]} Qxd4+ {[%emt 0:00:03]} 34. Kh1 {[%emt 0:00:11]} Qxd3 {[%emt 0:00:03]} 35. Kg1 {[%emt 0:00:30]} Qd4+ {[%emt 0:02:08]} 36. Kh1 {[%emt 0:00:08]} Qxg4 {[%emt 0:00:05]} 37. Rg1 {[%emt 0:00:53]} Qf3+ {[%emt 0:00:05]} 38. Qxf3 {[%emt 0:00:05]} Rxf3 {[%emt 0:00:03]} 39. Ra1 {[%emt 0:00:47]} Rf2 {[%emt 0:00:04]} 40. b4 {[%emt 0:00:37]} Kf7 {[%emt 0:00:26]} 41. Kg1 {[%emt 0:00:14]} Rg2+ {[%emt 0:00:04]} 42. Kh1 {[%emt 0:00:10]} Rb2 {[%emt 0:01:02]} 43. Kg1 {[%emt 0:00:13]} Rxb4 {[%emt 0:00:02]} 44. Rxa6 {[%emt 0:00:10]} Rg4+ {[%emt 0:00:27]} 45. Kh1 {[%emt 0:00:21]} Rf4 {[%emt 0:00:03]} 46. Kg1 {[%emt 0:00:27]} g5 {[%emt 0:00:02]} 47. Rb6 {[%emt 0:02:12]} Kf6 {[%emt 0:00:05]} 48. Ra6 {[%emt 0:00:07]} Kf5 {[%emt 0:00:04]} 49. Rb6 {[%emt 0:00:21]} e5 {[%emt 0:00:04]} 50. Rb5 {[%emt 0:00:15]} g4 {[%emt 0:00:11]} 51. Ra5 {[%emt 0:00:14]} Rb4 {[%emt 0:00:13]} 0-1

[Event "ESP-chT 2nd Division 2019"]
[Site "Linares"]
[Date "2019.08.22"]
[Round "5.9"]
[White "Fernandez Diaz, Cristian"]
[Black "Perera Borrego, Maria Adela"]
[Result "1/2-1/2"]
[ECO "E32"]
[WhiteElo "2303"]
[BlackElo "2186"]
[Annotator "NA"]
[PlyCount "70"]
[EventDate "2019.08.19"]
[EventType "team-tourn"]
[EventCountry "ESP"]
[SourceTitle "playchess.com"]
[Source "ChessBase"]
[SourceQuality "1"]
[TimeControl "5400+30"]

1. d4 {[%emt 0:01:19]} Nf6 {[%emt 0:00:00]} 2. c4 {[%emt 0:00:21]} e6 {[%emt 0:00:00]} 3. Nc3 {[%emt 0:00:10]} Bb4 {[%emt 0:00:05]} 4. Qc2 {[%emt 0:00:15]} O-O {[%emt 0:00:21]} 5. Nf3 {[%emt 0:00:04]} d6 {[%emt 0:02:06]} 6. Bd2 {[%emt 0:01:08]} c5 {[%emt 0:04:09]} 7. a3 {[%emt 0:03:28]} Ba5 {[%emt 0:04:33]} 8. e3 {[%emt 0:03:39]} Nc6 {[%emt 0:00:47]} 9. Bd3 {[%emt 0:00:57]} h6 {[%emt 0:01:29]} 10. O-O {[%emt 0:00:33]} Re8 {[%emt 0:00:33]} 11. Rad1 {[%emt 0:02:10]} Qe7 {[%emt 0:01:22]} 12. h3 {[%emt 0:08:17]} Bd7 {[%emt 0:04:24]} 13. d5 {[%emt 0:06:17]} Nb8 {[%emt 0:08:48]} 14. e4 {[%emt 0:08:38]} e5 {[%emt 0:01:25]} 15. Be2 {[%emt 0:05:40]} Nh5 {[%emt 0:08:09]} 16. Ne1 {[%emt 0:07:18]} Nf4 {[%emt 0:01:25]} 17. Bxf4 {[%emt 0:00:05]} exf4 {[%emt 0:00:08]} 18. Bf3 {[%emt 0:00:06]} Qg5 {[%emt 0:02:32]} 19. Kh2 {[%emt 0:00:55]} f5 {[%emt 0:01:24]} 20. exf5 {[%emt 0:03:43]} Bxc3 {[%emt 0:00:54]} 21. Qxc3 {[%emt 0:02:56]} Bxf5 {[%emt 0:00:31]} 22. Rc1 {[%emt 0:05:10]} Nd7 {[%emt 0:01:27]} 23. Bd1 {[%emt 0:00:11]} Qf6 {[%emt 0:09:31]} 24. Qd2 {[%emt 0:02:44]} g5 {[%emt 0:01:59]} 25. Ba4 {[%emt 0:10:24]} Re7 {[%emt 0:00:56]} 26. Bxd7 {[%emt 0:01:55]} Rxd7 {[%emt 0:02:29]} 27. g3 {[%emt 0:01:01]} Rg7 {[%emt 0:04:06]} 28. Ng2 {[%emt 0:01:21]} Qg6 {[%emt 0:09:37]} 29. g4 {[%emt 0:02:45]} Bd7 {[%emt 0:00:43]} 30. f3 {[%emt 0:01:19]} h5 {[%emt 0:01:01]} 31. Kg1 {[%emt 0:00:46]} hxg4 {[%emt 0:01:14]} 32. hxg4 {[%emt 0:01:23]} Qh6 {[%emt 0:10:14]} 33. Rfe1 {[%emt 0:00:21]} Rh7 {[%emt 0:01:31]} 34. Qd3 {[%emt 0:00:19]} Rf8 {[%emt 0:03:33]} 35. Kf2 {[%emt 0:05:02]} Qf6 {[%emt 0:06:08]} 1/2-1/2

[Event "ESP-chT 2nd Division 2019"]
[Site "Linares"]
[Date "2019.08.22"]
[Round "5.10"]
[White "Terron Elena, Francisco M."]
[Black "Marti Puig, Patricia"]
[Result "1-0"]
[ECO "D35"]
[WhiteElo "2167"]
[BlackElo "1683"]
[Annotator "NA"]
[PlyCount "49"]
[EventDate "2019.08.19"]
[EventType "team-tourn"]
[EventCountry "ESP"]
[SourceTitle "playchess.com"]
[Source "ChessBase"]
[SourceQuality "1"]
[TimeControl "5400+30"]

1. d4 {[%emt 0:00:00]} e6 {[%emt 0:01:17]} 2. c4 {[%emt 0:00:05]} Nf6 {[%emt 0:00:38]} 3. Nc3 {[%emt 0:00:24]} d5 {[%emt 0:00:27]} 4. cxd5 {[%emt 0:00:34]} exd5 {[%emt 0:00:07]} 5. Bg5 {[%emt 0:00:10]} Nbd7 {[%emt 0:00:20]} 6. e3 {[%emt 0:00:27]} c6 {[%emt 0:00:59]} 7. Bd3 {[%emt 0:00:22]} Be7 {[%emt 0:01:15]} 8. Qc2 {[%emt 0:00:14]} Nf8 {[%emt 0:02:15]} 9. Nge2 {[%emt 0:01:40]} Qc7 {[%emt 0:10:19]} 10. Bxf6 {[%emt 0:01:19]} Bxf6 {[%emt 0:00:32]} 11. Nxd5 {[%emt 0:00:05]} Qa5+ {[%emt 0:03:41]} 12. Ndc3 {[%emt 0:00:12]} Ng6 {[%emt 0:02:46]} 13. O-O {[%emt 0:01:22]} Be6 {[%emt 0:09:38]} 14. f4 {[%emt 0:08:58]} Ne7 {[%emt 0:24:52]} 15. b4 {[%emt 0:08:18]} Qh5 {[%emt 0:02:13]} 16. Ng3 {[%emt 0:00:45]} Qh6 {[%emt 0:01:05]} 17. Nge4 {[%emt 0:01:17]} Nf5 {[%emt 0:06:20]} 18. Rae1 {[%emt 0:04:36]} O-O-O {[%emt 0:11:07]} 19. Nxf6 {[%emt 0:00:27]} Qxf6 {[%emt 0:00:08]} 20. d5 {[%emt 0:00:10]} Nxe3 {[%emt 0:04:50]} 21. Rxe3 {[%emt 0:00:22]} Qd4 {[%emt 0:00:11]} 22. Qf2 {[%emt 0:08:45]} Bxd5 {[%emt 0:02:36]} 23. Nxd5 {[%emt 0:00:12]} Rxd5 {[%emt 0:01:49]} 24. Be4 {[%emt 0:07:33]} Rb5 {[%emt 0:01:16]} 25. Bf5+ {[%emt 0:00:33]} 1-0

[Event "ESP-chT 2nd Division 2019"]
[Site "Linares"]
[Date "2019.08.22"]
[Round "5.11"]
[White "Moreno Trujillo, Alejandro"]
[Black "Sanchez Saez, Francisco"]
[Result "0-1"]
[ECO "E90"]
[WhiteElo "2519"]
[BlackElo "2359"]
[Annotator "ChessBase"]
[PlyCount "78"]
[EventDate "2019.08.19"]
[EventType "team-tourn"]
[EventCountry "ESP"]
[SourceTitle "playchess.com"]
[Source "ChessBase"]
[SourceQuality "1"]
[TimeControl "5400+30"]

1. d4 {[%emt 0:00:00]} Nf6 {[%emt 0:00:00]} 2. c4 {[%emt 0:00:06]} g6 {[%emt 0:00:00]} 3. Nc3 {[%emt 0:00:07]} Bg7 {[%emt 0:00:04]} 4. e4 {[%emt 0:00:08]} d6 {[%emt 0:00:05]} 5. Nf3 {[%emt 0:00:06]} O-O {[%emt 0:00:05]} 6. h3 {[%emt 0:00:04]} e5 {[%emt 0:01:10]} 7. d5 {[%emt 0:00:12]} Nh5 {[%emt 0:00:14]} 8. g3 {[%emt 0:00:16]} f5 {[%emt 0:00:27]} 9. Bg2 {[%emt 0:00:14]} f4 {[%emt 0:01:03]} 10. g4 {[%emt 0:04:39]} Nf6 {[%emt 0:00:09]} 11. Bf1 {[%emt 0:10:17]} a5 {[%emt 0:07:05]} 12. b3 {[%emt 0:13:31]} Na6 {[%emt 0:05:42]} 13. Ba3 {[%emt 0:09:10]} Nd7 {[%emt 0:06:55]} 14. Na4 {[%emt 0:04:48]} Nb4 {[%emt 0:17:46]} 15. Bb2 {[%emt 0:01:42]} Na6 {[%emt 0:03:20]} 16. a3 {[%emt 0:05:08]} Ndc5 {[%emt 0:00:22]} 17. Nxc5 {[%emt 0:00:59]} Nxc5 {[%emt 0:00:09]} 18. Qc2 {[%emt 0:02:15]} c6 {[%emt 0:04:57]} 19. Bc3 {[%emt 0:06:58]} Qb6 {[%emt 0:10:01]} 20. Rb1 {[%emt 0:04:58]} cxd5 {[%emt 0:04:39]} 21. cxd5 {[%emt 0:00:09]} Bd7 {[%emt 0:00:09]} 22. Nd2 {[%emt 0:09:04]} Qc7 {[%emt 0:06:18]} 23. a4 {[%emt 0:03:57]} Rfc8 {[%emt 0:03:11]} 24. Bc4 {[%emt 0:04:17]} f3 {[%emt 0:03:21]} 25. Rg1 {[%emt 0:04:01]} Rf8 {[%emt 0:06:22]} 26. Rg3 {[%emt 0:01:42]} Kh8 {[%emt 0:00:39]} 27. Qd1 {[%emt 0:06:33]} Rf4 {[%emt 0:03:15]} 28. Rxf3 {[%emt 0:01:06]} Raf8 {[%emt 0:01:44]} 29. Rxf4 {[%emt 0:01:01]} Rxf4 {[%emt 0:00:07]} 30. f3 {[%emt 0:02:53]} Rf8 {[%emt 0:03:11]} 31. Qe2 {[%emt 0:00:45]} Bh6 {[%emt 0:01:13]} 32. Nf1 {[%emt 0:01:22]} Qb6 {[%emt 0:05:27]} 33. Rb2 {[%emt 0:01:43]} Bf4 {[%emt 0:00:42]} 34. Kd1 {[%emt 0:01:09]} Rc8 {[%emt 0:03:40]} 35. Nd2 {[%emt 0:01:15]} Nxa4 {[%emt 0:02:15]} 36. bxa4 {[%emt 0:00:34]} Bxa4+ {[%emt 0:00:02]} 37. Ke1 {[%emt 0:00:25]} Qg1+ {[%emt 0:00:42]} 38. Qf1 {[%emt 0:00:42]} Qe3+ {[%emt 0:00:16]} 39. Be2 {[%emt 0:00:40]} Bg3+ {[%emt 0:00:08]} 0-1